[Event "*** Titled Tuesday Blitz"]
[Site "Chess.com"]
[Date "2019.11.05"]
[Round "2"]
[White "Tolya2"]
[Black "yjjga"]
[Result "1/2-1/2"]
[WhiteElo "2410"]
[BlackElo "2081"]
[TimeControl "180+2"]
[EndTime "13:25:04 PST"]
[Termination "Game drawn by repetition"]

1. Nf3 {[%clk 0:03:01.9]} 1... c5 {[%clk 0:02:58.5]} 2. c4 {[%clk 0:03:01.6]}
2... Nc6 {[%clk 0:02:59.4]} 3. d4 {[%clk 0:03:01.7]} 3... cxd4 {[%clk 0:02:54]}
4. Nxd4 {[%clk 0:03:02.6]} 4... e5 {[%clk 0:02:50.4]} 5. Nb5 {[%clk 0:03:01.4]}
5... d6 {[%clk 0:02:49.9]} 6. g3 {[%clk 0:03:00.7]} 6... Be6 {[%clk 0:02:45.8]}
7. N1a3 {[%clk 0:02:54.6]} 7... Nf6 {[%clk 0:02:12.4]} 8. Bg2 {[%clk 0:02:54.9]}
8... Be7 {[%clk 0:02:13.2]} 9. O-O {[%clk 0:02:53.6]} 9... O-O {[%clk
0:02:14.6]} 10. h3 {[%clk 0:02:47.3]} 10... d5 {[%clk 0:02:04.9]} 11. cxd5
{[%clk 0:02:45.8]} 11... Bxd5 {[%clk 0:01:57.5]} 12. Nc3 {[%clk 0:02:39.2]}
12... Bxg2 {[%clk 0:01:35.2]} 13. Kxg2 {[%clk 0:02:37]} 13... a6 {[%clk
0:01:20.2]} 14. Be3 {[%clk 0:02:36.4]} 14... b5 {[%clk 0:01:14.5]} 15. Nc2
{[%clk 0:02:33.4]} 15... Rc8 {[%clk 0:01:05.4]} 16. Qxd8 {[%clk 0:02:32.1]}
16... Rfxd8 {[%clk 0:01:05.6]} 17. Rfd1 {[%clk 0:02:33.2]} 17... Na5 {[%clk
0:00:44.3]} 18. Rxd8+ {[%clk 0:02:28.9]} 18... Rxd8 {[%clk 0:00:24]} 19. Rd1
{[%clk 0:02:20.9]} 19... Nc4 {[%clk 0:00:23.2]} 20. Rxd8+ {[%clk 0:02:19.6]}
20... Bxd8 {[%clk 0:00:25.1]} 21. Bc1 {[%clk 0:02:20.3]} 21... Ba5 {[%clk
0:00:20]} 22. Nd1 {[%clk 0:02:13.5]} 22... Nd5 {[%clk 0:00:18.5]} 23. b3 {[%clk
0:02:10.5]} 23... Nd6 {[%clk 0:00:19.3]} 24. Nce3 {[%clk 0:02:07.3]} 24... Nxe3+
{[%clk 0:00:18.6]} 25. Bxe3 {[%clk 0:02:02.2]} 25... f6 {[%clk 0:00:19.9]} 26.
f3 {[%clk 0:01:58.3]} 26... Kf7 {[%clk 0:00:21]} 27. Bc5 {[%clk 0:01:58.3]}
27... Ke6 {[%clk 0:00:22.9]} 28. Kf2 {[%clk 0:01:54.2]} 28... Nb7 {[%clk
0:00:21.3]} 29. Bf8 {[%clk 0:01:53.1]} 29... Kf7 {[%clk 0:00:21.1]} 30. Ba3
{[%clk 0:01:52.3]} 30... Ke6 {[%clk 0:00:20.9]} 31. Ke3 {[%clk 0:01:47.1]} 31...
Bb6+ {[%clk 0:00:22.4]} 32. Kd2 {[%clk 0:01:46.3]} 32... Nd8 {[%clk 0:00:19.8]}
33. g4 {[%clk 0:01:46.2]} 33... Nc6 {[%clk 0:00:21]} 34. e3 {[%clk 0:01:41.6]}
34... Ba5+ {[%clk 0:00:22.3]} 35. Kd3 {[%clk 0:01:40.6]} 35... Bb4 {[%clk
0:00:23.3]} 36. Bb2 {[%clk 0:01:39.5]} 36... Bd6 {[%clk 0:00:23.5]} 37. a3
{[%clk 0:01:36.5]} 37... b4 {[%clk 0:00:20.4]} 38. a4 {[%clk 0:01:35.2]} 38...
Na5 {[%clk 0:00:21]} 39. Kc2 {[%clk 0:01:35.3]} 39... Kd5 {[%clk 0:00:22.1]} 40.
Nf2 {[%clk 0:01:35.6]} 40... Bc5 {[%clk 0:00:22.7]} 41. Bc1 {[%clk 0:01:35.4]}
41... Nc6 {[%clk 0:00:22.2]} 42. Ne4 {[%clk 0:01:34.7]} 42... Bb6 {[%clk
0:00:21]} 43. h4 {[%clk 0:01:34]} 43... a5 {[%clk 0:00:19.8]} 44. h5 {[%clk
0:01:34.3]} 44... Nd8 {[%clk 0:00:20.5]} 45. h6 {[%clk 0:01:34.2]} 45... gxh6
{[%clk 0:00:21.5]} 46. Nxf6+ {[%clk 0:01:35.2]} 46... Ke6 {[%clk 0:00:23.1]} 47.
Ng8 {[%clk 0:01:34.6]} 47... Nf7 {[%clk 0:00:21.3]} 48. e4 {[%clk 0:01:35.7]}
48... h5 {[%clk 0:00:21.6]} 49. gxh5 {[%clk 0:01:35.3]} 49... Bd8 {[%clk
0:00:22.9]} 50. Nh6 {[%clk 0:01:34.5]} 50... Ng5 {[%clk 0:00:23.7]} 51. Bxg5
{[%clk 0:01:31.5]} 51... Bxg5 {[%clk 0:00:25.6]} 52. Ng4 {[%clk 0:01:31.9]}
52... Bf4 {[%clk 0:00:26.9]} 53. Kd3 {[%clk 0:01:32.5]} 53... Kd6 {[%clk
0:00:27.9]} 54. Kc4 {[%clk 0:01:33.2]} 54... Kc6 {[%clk 0:00:29.2]} 55. Nf6
{[%clk 0:01:31.2]} 55... h6 {[%clk 0:00:30.4]} 56. Nd5 {[%clk 0:01:30.7]} 56...
Bd2 {[%clk 0:00:30.2]} 57. Ne7+ {[%clk 0:01:30.9]} 57... Kd6 {[%clk 0:00:30.9]}
58. Nf5+ {[%clk 0:01:31.7]} 58... Kc6 {[%clk 0:00:32.3]} 59. Ne7+ {[%clk
0:01:28.5]} 59... Kd6 {[%clk 0:00:32.4]} 60. Ng6 {[%clk 0:01:28.9]} 60... Bg5
{[%clk 0:00:27.6]} 61. Kb5 {[%clk 0:01:29.4]} 61... Bd8 {[%clk 0:00:28.4]} 62.
Nh8 {[%clk 0:01:27.6]} 62... Ke6 {[%clk 0:00:27.6]} 63. Ng6 {[%clk 0:01:26.7]}
63... Kd6 {[%clk 0:00:26.2]} 64. Nf8 {[%clk 0:01:25.9]} 64... Be7 {[%clk
0:00:21.6]} 65. Ng6 {[%clk 0:01:22.4]} 65... Bd8 {[%clk 0:00:23.5]} 1/2-1/2

[Event "*** Titled Tuesday Blitz"]
[Site "Chess.com"]
[Date "2019.11.05"]
[Round "2"]
[White "Eloist"]
[Black "SanchezKelvin"]
[Result "0-1"]
[WhiteElo "2203"]
[BlackElo "2496"]
[TimeControl "180+2"]
[EndTime "13:25:10 PST"]
[Termination "SanchezKelvin won by resignation"]

1. e4 {[%clk 0:02:56.1]} 1... c5 {[%clk 0:03:00.7]} 2. d3 {[%clk 0:02:55.5]}
2... Nc6 {[%clk 0:03:01.4]} 3. f4 {[%clk 0:02:56.3]} 3... g6 {[%clk 0:03:02.7]}
4. Be2 {[%clk 0:02:57.1]} 4... Bg7 {[%clk 0:03:04.6]} 5. Nf3 {[%clk 0:02:58.2]}
5... e6 {[%clk 0:03:05.9]} 6. c3 {[%clk 0:02:57.6]} 6... Nge7 {[%clk 0:03:07.8]}
7. O-O {[%clk 0:02:57.5]} 7... O-O {[%clk 0:03:08.2]} 8. Na3 {[%clk 0:02:57]}
8... d5 {[%clk 0:03:09]} 9. e5 {[%clk 0:02:56.4]} 9... d4 {[%clk 0:03:10.1]} 10.
c4 {[%clk 0:02:42]} 10... b6 {[%clk 0:03:01.3]} 11. Nc2 {[%clk 0:02:41.7]} 11...
Bb7 {[%clk 0:02:47]} 12. Ng5 {[%clk 0:02:40.4]} 12... Qd7 {[%clk 0:02:38.2]} 13.
Bd2 {[%clk 0:02:39]} 13... Rad8 {[%clk 0:02:25.1]} 14. Bf3 {[%clk 0:02:38.2]}
14... Nf5 {[%clk 0:02:18.7]} 15. Qe1 {[%clk 0:02:33.9]} 15... f6 {[%clk
0:01:48.6]} 16. exf6 {[%clk 0:02:31]} 16... Rxf6 {[%clk 0:01:50.5]} 17. Ne4
{[%clk 0:02:15.7]} 17... Rf7 {[%clk 0:01:50.2]} 18. Rd1 {[%clk 0:02:02.5]} 18...
e5 {[%clk 0:01:50.7]} 19. g4 {[%clk 0:01:57.2]} 19... Nh6 {[%clk 0:01:36.3]} 20.
Qh4 {[%clk 0:01:47.3]} 20... exf4 {[%clk 0:01:18.8]} 21. Ng5 {[%clk 0:01:45.5]}
21... Rf6 {[%clk 0:01:04.3]} 22. Bd5+ {[%clk 0:01:38.9]} 22... Kh8 {[%clk
0:01:04.5]} 23. Bxf4 {[%clk 0:01:33.3]} 23... Rdf8 {[%clk 0:00:58.8]} 24. Nxh7
{[%clk 0:01:10.9]} 24... Rxf4 {[%clk 0:00:49.5]} 25. Nxf8 {[%clk 0:01:09.7]}
25... Rxf8 {[%clk 0:00:48.3]} 26. Rxf8+ {[%clk 0:00:56.7]} 26... Bxf8 {[%clk
0:00:48.5]} 27. Rf1 {[%clk 0:00:46]} 27... Bg7 {[%clk 0:00:37.1]} 28. Rf7 {[%clk
0:00:42.9]} 28... Qd8 {[%clk 0:00:18.5]} 29. Qxd8+ {[%clk 0:00:29.8]} 29... Nxd8
{[%clk 0:00:19.1]} 30. Rd7 {[%clk 0:00:28.5]} 30... Bf6 {[%clk 0:00:13.9]} 31.
Bxb7 {[%clk 0:00:27]} 31... Nxg4 {[%clk 0:00:12.8]} 32. Be4 {[%clk 0:00:23]}
32... a5 {[%clk 0:00:11]} 33. Bxg6 {[%clk 0:00:21.3]} 33... Ne5 {[%clk
0:00:11.8]} 34. Ra7 {[%clk 0:00:20.6]} 34... Nxg6 {[%clk 0:00:12.4]} 35. Ra6
{[%clk 0:00:20.2]} 35... Ne5 {[%clk 0:00:11.8]} 36. Rxb6 {[%clk 0:00:20.7]}
36... Kg7 {[%clk 0:00:13.1]} 37. Ne1 {[%clk 0:00:21.1]} 37... Bh4 {[%clk
0:00:14.1]} 38. Rd6 {[%clk 0:00:21.4]} 38... Ndf7 {[%clk 0:00:15.2]} 39. Ng2
{[%clk 0:00:18]} 39... Nxd6 {[%clk 0:00:13.1]} 40. Nxh4 {[%clk 0:00:18.9]} 40...
Nxd3 {[%clk 0:00:14.4]} 41. Kf1 {[%clk 0:00:19]} 41... Nxc4 {[%clk 0:00:15.3]}
42. b3 {[%clk 0:00:20.2]} 42... Ne3+ {[%clk 0:00:16]} 43. Ke2 {[%clk 0:00:20.6]}
43... Nf4+ {[%clk 0:00:17.1]} 44. Kd2 {[%clk 0:00:19.5]} 44... Kf6 {[%clk
0:00:18.3]} 45. Nf3 {[%clk 0:00:19.9]} 45... Nfd5 {[%clk 0:00:18.7]} 46. h4
{[%clk 0:00:20.3]} 46... Nb4 {[%clk 0:00:18.9]} 47. a3 {[%clk 0:00:21.1]} 47...
Nbc2 {[%clk 0:00:19.6]} 48. a4 {[%clk 0:00:20.7]} 48... Na1 {[%clk 0:00:20.6]}
49. Kd3 {[%clk 0:00:20.3]} 49... Nxb3 {[%clk 0:00:21.7]} 50. h5 {[%clk
0:00:20.2]} 50... c4+ {[%clk 0:00:23]} 51. Ke4 {[%clk 0:00:20.5]} 51... c3
{[%clk 0:00:24.5]} 52. Kd3 {[%clk 0:00:21.3]} 52... c2 {[%clk 0:00:25.4]} 0-1

[Event "*** Titled Tuesday Blitz"]
[Site "Chess.com"]
[Date "2019.11.05"]
[Round "2"]
[White "sergeikim"]
[Black "SaraciNderim"]
[Result "0-1"]
[WhiteElo "2558"]
[BlackElo "2815"]
[TimeControl "180+2"]
[EndTime "13:25:12 PST"]
[Termination "SaraciNderim won by resignation"]

1. d4 {[%clk 0:03:01.9]} 1... Nf6 {[%clk 0:02:49.3]} 2. c4 {[%clk 0:03:00.3]}
2... e6 {[%clk 0:02:49.8]} 3. Nc3 {[%clk 0:03:00.4]} 3... d5 {[%clk 0:02:49.4]}
4. Nf3 {[%clk 0:03:00.1]} 4... Bb4 {[%clk 0:02:48.9]} 5. Qb3 {[%clk 0:02:59.4]}
5... Nc6 {[%clk 0:02:47.5]} 6. a3 {[%clk 0:02:58.6]} 6... Bxc3+ {[%clk
0:02:48.1]} 7. Qxc3 {[%clk 0:02:59.3]} 7... O-O {[%clk 0:02:46.1]} 8. g3 {[%clk
0:02:55.3]} 8... a6 {[%clk 0:02:46.1]} 9. Bg2 {[%clk 0:02:54.3]} 9... dxc4
{[%clk 0:02:36.2]} 10. Qxc4 {[%clk 0:02:55.1]} 10... Nd5 {[%clk 0:02:30.1]} 11.
O-O {[%clk 0:02:53.1]} 11... Na5 {[%clk 0:02:30.4]} 12. Qc2 {[%clk 0:02:52.2]}
12... b5 {[%clk 0:02:27.7]} 13. Ne5 {[%clk 0:02:49]} 13... Bb7 {[%clk
0:02:28.2]} 14. b4 {[%clk 0:02:46.7]} 14... Nc4 {[%clk 0:02:24]} 15. Nxc4 {[%clk
0:02:45.9]} 15... bxc4 {[%clk 0:02:25.9]} 16. Qxc4 {[%clk 0:02:46.9]} 16... Nb6
{[%clk 0:02:19.2]} 17. Qd3 {[%clk 0:02:45]} 17... Bxg2 {[%clk 0:02:17.7]} 18.
Kxg2 {[%clk 0:02:46]} 18... Qd5+ {[%clk 0:02:18.5]} 19. e4 {[%clk 0:02:43.8]}
19... Qb5 {[%clk 0:02:19.1]} 20. Qc2 {[%clk 0:02:29.1]} 20... Rfd8 {[%clk
0:02:06.7]} 21. Be3 {[%clk 0:02:22.1]} 21... Nc4 {[%clk 0:02:04.7]} 22. Rfc1
{[%clk 0:02:09.9]} 22... Nxe3+ {[%clk 0:02:04.2]} 23. fxe3 {[%clk 0:02:10.2]}
23... a5 {[%clk 0:02:05.2]} 24. Qc4 {[%clk 0:01:54.3]} 24... Qb7 {[%clk
0:02:04.2]} 25. Qc6 {[%clk 0:01:52.1]} 25... Qxc6 {[%clk 0:02:04.1]} 26. Rxc6
{[%clk 0:01:51.8]} 26... axb4 {[%clk 0:02:04.7]} 27. Rxc7 {[%clk 0:01:52.8]}
27... Rdb8 {[%clk 0:01:50.1]} 28. a4 {[%clk 0:01:32.2]} 28... b3 {[%clk
0:01:48.1]} 29. Rb1 {[%clk 0:01:33.3]} 29... h6 {[%clk 0:01:26.9]} 30. Rc3
{[%clk 0:01:27.9]} 30... b2 {[%clk 0:01:27.7]} 31. Rc2 {[%clk 0:01:28.3]} 31...
Rb3 {[%clk 0:01:28.1]} 32. Kf3 {[%clk 0:01:22.1]} 32... Rxa4 {[%clk 0:01:27.7]}
33. Rbxb2 {[%clk 0:01:19.2]} 33... Rd3 {[%clk 0:01:27.5]} 34. Rd2 {[%clk
0:01:18.5]} 34... Rc3 {[%clk 0:01:27.2]} 35. Rdc2 {[%clk 0:01:19.3]} 35... Rca3
{[%clk 0:01:26.1]} 36. h4 {[%clk 0:01:10.7]} 36... Rxd4 {[%clk 0:01:23.3]} 37.
Ra2 {[%clk 0:01:07.6]} 37... Rdd3 {[%clk 0:01:19.1]} 38. Rxa3 {[%clk 0:01:07.8]}
38... Rxa3 {[%clk 0:01:21]} 39. h5 {[%clk 0:01:08.5]} 39... Ra5 {[%clk
0:01:17.2]} 40. g4 {[%clk 0:01:08.2]} 40... Rg5 {[%clk 0:01:17.6]} 41. Rc8+
{[%clk 0:01:07]} 41... Kh7 {[%clk 0:01:18.1]} 42. Rc7 {[%clk 0:01:08]} 42... f6
{[%clk 0:01:19.1]} 43. Re7 {[%clk 0:01:06.7]} 43... f5 {[%clk 0:01:14.2]} 44.
exf5 {[%clk 0:00:53.6]} 44... exf5 {[%clk 0:01:14.1]} 45. gxf5 {[%clk
0:00:54.4]} 45... Rxf5+ {[%clk 0:01:15]} 46. Kg4 {[%clk 0:00:55.6]} 46... Rg5+
{[%clk 0:01:16.3]} 47. Kh4 {[%clk 0:00:56]} 47... Kg8 {[%clk 0:01:18.2]} 48. Re4
{[%clk 0:00:41.7]} 48... Kf7 {[%clk 0:01:19.8]} 49. Rf4+ {[%clk 0:00:40.6]}
49... Ke6 {[%clk 0:01:21.4]} 50. Ra4 {[%clk 0:00:35.3]} 50... Re5 {[%clk
0:01:18.9]} 51. Ra6+ {[%clk 0:00:32.2]} 51... Kf5 {[%clk 0:01:19.1]} 52. Rg6
{[%clk 0:00:29.8]} 52... Re4+ {[%clk 0:01:19.7]} 53. Kh3 {[%clk 0:00:27.7]}
53... Rxe3+ {[%clk 0:01:20.8]} 54. Kh4 {[%clk 0:00:29.2]} 54... Re1 {[%clk
0:01:21.2]} 55. Ra6 {[%clk 0:00:27.7]} 55... Rh1+ {[%clk 0:01:21]} 56. Kg3
{[%clk 0:00:28.7]} 56... Rxh5 {[%clk 0:01:22.1]} 57. Ra5+ {[%clk 0:00:26.2]}
57... Kg6 {[%clk 0:01:22.4]} 58. Ra6+ {[%clk 0:00:26.9]} 58... Kh7 {[%clk
0:01:23.5]} 59. Kg4 {[%clk 0:00:28]} 59... Rb5 {[%clk 0:01:24.3]} 60. Kh4 {[%clk
0:00:28.8]} 60... h5 {[%clk 0:01:24.7]} 61. Ra7 {[%clk 0:00:28]} 61... Kh6
{[%clk 0:01:24.1]} 62. Ra6+ {[%clk 0:00:29.2]} 62... g6 {[%clk 0:01:25.2]} 63.
Rc6 {[%clk 0:00:29.8]} 63... Rb4+ {[%clk 0:01:25.5]} 64. Kg3 {[%clk 0:00:30.3]}
64... h4+ {[%clk 0:01:26.3]} 65. Kh3 {[%clk 0:00:31]} 65... Kh5 {[%clk
0:01:27.7]} 66. Rc8 {[%clk 0:00:30]} 66... Rb3+ {[%clk 0:01:27.1]} 0-1

[Event "*** Titled Tuesday Blitz"]
[Site "Chess.com"]
[Date "2019.11.05"]
[Round "2"]
[White "vova-79"]
[Black "WorldChampionBulletChess"]
[Result "1-0"]
[WhiteElo "2421"]
[BlackElo "2060"]
[TimeControl "180+2"]
[EndTime "13:25:13 PST"]
[Termination "vova-79 won by checkmate"]

1. d4 {[%clk 0:03:01.7]} 1... Nf6 {[%clk 0:02:59.6]} 2. c4 {[%clk 0:03:01.9]}
2... e6 {[%clk 0:02:59.8]} 3. Nc3 {[%clk 0:03:02.1]} 3... b6 {[%clk 0:03:01]} 4.
e4 {[%clk 0:02:55.8]} 4... Bb4 {[%clk 0:02:53.8]} 5. Bd3 {[%clk 0:02:55.2]} 5...
Bb7 {[%clk 0:02:51]} 6. Qe2 {[%clk 0:02:53.4]} 6... d6 {[%clk 0:02:26.5]} 7. Bd2
{[%clk 0:02:49.3]} 7... Nbd7 {[%clk 0:02:27.1]} 8. Nf3 {[%clk 0:02:48.6]} 8...
O-O {[%clk 0:02:28.5]} 9. O-O {[%clk 0:02:48.8]} 9... Ne8 {[%clk 0:02:27.2]} 10.
a3 {[%clk 0:02:47.7]} 10... Bxc3 {[%clk 0:02:28]} 11. Bxc3 {[%clk 0:02:49.6]}
11... e5 {[%clk 0:02:29.4]} 12. dxe5 {[%clk 0:02:47.7]} 12... dxe5 {[%clk
0:02:30.9]} 13. Nxe5 {[%clk 0:02:47.4]} 13... Nxe5 {[%clk 0:02:24.7]} 14. Bxe5
{[%clk 0:02:49.3]} 14... Nd6 {[%clk 0:02:17.9]} 15. Qg4 {[%clk 0:02:37.5]} 15...
g6 {[%clk 0:01:46]} 16. f3 {[%clk 0:02:17]} 16... Qe7 {[%clk 0:01:36.7]} 17. Bc3
{[%clk 0:02:15.3]} 17... Nxc4 {[%clk 0:01:35.5]} 18. Rfe1 {[%clk 0:01:56.3]}
18... Qc5+ {[%clk 0:01:30.5]} 19. Kh1 {[%clk 0:01:55.5]} 19... Ne5 {[%clk
0:01:30.9]} 20. Bxe5 {[%clk 0:01:51.5]} 20... Qxe5 {[%clk 0:01:32.8]} 21. b4
{[%clk 0:01:51.2]} 21... Rad8 {[%clk 0:01:20.8]} 22. Bc4 {[%clk 0:01:47.7]}
22... Kg7 {[%clk 0:01:17.5]} 23. Rac1 {[%clk 0:01:44]} 23... Rd2 {[%clk
0:01:18]} 24. Bf1 {[%clk 0:01:38.6]} 24... Rfd8 {[%clk 0:01:14.6]} 25. Qg3
{[%clk 0:01:33.3]} 25... Qxg3 {[%clk 0:01:11.7]} 26. hxg3 {[%clk 0:01:34.9]}
26... R8d7 {[%clk 0:01:10.3]} 27. Bb5 {[%clk 0:01:34.4]} 27... c6 {[%clk
0:01:11]} 28. Bxc6 {[%clk 0:01:33.7]} 28... Bxc6 {[%clk 0:01:11.4]} 29. Rxc6
{[%clk 0:01:35.5]} 29... Ra2 {[%clk 0:01:11.1]} 30. Rc3 {[%clk 0:01:24.9]} 30...
Rdd2 {[%clk 0:01:11.8]} 31. Rg1 {[%clk 0:01:25.3]} 31... Kf6 {[%clk 0:00:58.3]}
32. f4 {[%clk 0:01:23.2]} 32... h6 {[%clk 0:00:57.2]} 33. Kh2 {[%clk 0:01:22.8]}
33... g5 {[%clk 0:00:57.9]} 34. Kh3 {[%clk 0:01:09.8]} 34... Rd4 {[%clk
0:00:49.9]} 35. Re1 {[%clk 0:01:04]} 35... g4+ {[%clk 0:00:43.8]} 36. Kxg4
{[%clk 0:01:03.6]} 36... Rxg2 {[%clk 0:00:45.4]} 37. Rh1 {[%clk 0:01:02.3]}
37... Kg7 {[%clk 0:00:45.9]} 38. Kf5 {[%clk 0:01:01.3]} 38... Rd6 {[%clk
0:00:36.9]} 39. e5 {[%clk 0:01:00.7]} 39... Re6 {[%clk 0:00:36.5]} 40. Rh4
{[%clk 0:00:59.7]} 40... Rd2 {[%clk 0:00:17.9]} 41. Rg4+ {[%clk 0:00:57.2]}
41... Kf8 {[%clk 0:00:17.7]} 42. Rc8+ {[%clk 0:00:56.4]} 42... Ke7 {[%clk
0:00:19.3]} 43. Rgg8 {[%clk 0:00:56.9]} 43... Rd3 {[%clk 0:00:16.1]} 44. Rge8+
{[%clk 0:00:54.8]} 44... Kd7 {[%clk 0:00:16.7]} 45. Red8+ {[%clk 0:00:56.7]}
45... Ke7 {[%clk 0:00:17.4]} 46. Rxd3 {[%clk 0:00:57.8]} 46... a5 {[%clk
0:00:16.2]} 47. b5 {[%clk 0:00:55]} 47... a4 {[%clk 0:00:16.6]} 48. Rd6 {[%clk
0:00:53]} 48... h5 {[%clk 0:00:18.5]} 49. Rxe6+ {[%clk 0:00:52.1]} 49... fxe6+
{[%clk 0:00:20.4]} 50. Kg5 {[%clk 0:00:52.2]} 50... h4 {[%clk 0:00:22.3]} 51.
gxh4 {[%clk 0:00:52]} 51... Kd7 {[%clk 0:00:24.2]} 52. Rc6 {[%clk 0:00:50.6]}
52... Ke7 {[%clk 0:00:24.7]} 53. Kg6 {[%clk 0:00:52.3]} 53... Kd7 {[%clk
0:00:26.6]} 54. h5 {[%clk 0:00:52.5]} 54... Ke7 {[%clk 0:00:28.5]} 55. h6 {[%clk
0:00:53]} 55... Kd7 {[%clk 0:00:30.4]} 56. h7 {[%clk 0:00:52.1]} 56... Ke7
{[%clk 0:00:32.3]} 57. h8=Q {[%clk 0:00:53.8]} 57... Kd7 {[%clk 0:00:34]} 58.
Qb8 {[%clk 0:00:52.7]} 58... Ke7 {[%clk 0:00:35.9]} 59. Rc7# {[%clk 0:00:53.2]}
1-0

[Event "*** Titled Tuesday Blitz"]
[Site "Chess.com"]
[Date "2019.11.05"]
[Round "2"]
[White "Donseng"]
[Black "ChessWarrior7197"]
[Result "0-1"]
[WhiteElo "2624"]
[BlackElo "2941"]
[TimeControl "180+2"]
[EndTime "13:25:15 PST"]
[Termination "ChessWarrior7197 won by resignation"]

1. c4 {[%clk 0:03:01.9]} 1... Nf6 {[%clk 0:03:00.8]} 2. Nc3 {[%clk 0:03:02.8]}
2... e5 {[%clk 0:03:01.4]} 3. e4 {[%clk 0:03:04.1]} 3... Nc6 {[%clk 0:03:00.2]}
4. Nf3 {[%clk 0:03:05.5]} 4... Bc5 {[%clk 0:03:00.8]} 5. Nxe5 {[%clk 0:03:06.2]}
5... Nxe5 {[%clk 0:03:02.7]} 6. d4 {[%clk 0:03:07]} 6... Bb4 {[%clk 0:03:04.3]}
7. dxe5 {[%clk 0:03:08.4]} 7... Nxe4 {[%clk 0:03:05.8]} 8. Qd3 {[%clk
0:03:06.7]} 8... Nxc3 {[%clk 0:02:35]} 9. bxc3 {[%clk 0:03:07.3]} 9... Be7
{[%clk 0:02:36.9]} 10. Qg3 {[%clk 0:03:08.2]} 10... Kf8 {[%clk 0:02:38.3]} 11.
Bf4 {[%clk 0:02:55.6]} 11... d6 {[%clk 0:02:34.7]} 12. O-O-O {[%clk 0:02:51.6]}
12... Be6 {[%clk 0:02:28.6]} 13. exd6 {[%clk 0:02:52]} 13... cxd6 {[%clk
0:02:29.2]} 14. Bxd6 {[%clk 0:02:52.7]} 14... Bxd6 {[%clk 0:02:27.6]} 15. Qxd6+
{[%clk 0:02:52.3]} 15... Qxd6 {[%clk 0:02:28.9]} 16. Rxd6 {[%clk 0:02:52.9]}
16... Ke7 {[%clk 0:02:30.8]} 17. Rd4 {[%clk 0:02:54.3]} 17... Rhd8 {[%clk
0:02:28.9]} 18. Be2 {[%clk 0:02:55.1]} 18... Rxd4 {[%clk 0:02:29]} 19. cxd4
{[%clk 0:02:55.8]} 19... Bxc4 {[%clk 0:02:30.9]} 20. Bxc4 {[%clk 0:02:53.6]}
20... Rc8 {[%clk 0:02:32]} 21. Re1+ {[%clk 0:02:47.8]} 21... Kd6 {[%clk
0:02:32.4]} 22. Kd2 {[%clk 0:02:43.5]} 22... Rxc4 {[%clk 0:02:33]} 23. Kd3
{[%clk 0:02:45]} 23... Ra4 {[%clk 0:02:33.7]} 24. Re2 {[%clk 0:02:46.2]} 24...
f6 {[%clk 0:02:34]} 25. Rb2 {[%clk 0:02:43.1]} 25... b6 {[%clk 0:02:33.5]} 26.
Ke4 {[%clk 0:02:42.7]} 26... g6 {[%clk 0:02:33.7]} 27. g4 {[%clk 0:02:42.3]}
27... Ra3 {[%clk 0:02:33.6]} 28. f3 {[%clk 0:02:32]} 28... Ke6 {[%clk
0:02:32.8]} 29. Rf2 {[%clk 0:01:48.2]} 29... Ra4 {[%clk 0:02:21.9]} 30. Rd2
{[%clk 0:01:44.8]} 30... b5 {[%clk 0:02:17.1]} 31. h4 {[%clk 0:01:44.6]} 31...
a6 {[%clk 0:02:14.2]} 32. h5 {[%clk 0:01:42.3]} 32... Kd6 {[%clk 0:01:47.1]} 33.
hxg6 {[%clk 0:01:37]} 33... hxg6 {[%clk 0:01:49]} 34. f4 {[%clk 0:01:20.7]}
34... Ra3 {[%clk 0:01:44.3]} 35. Rg2 {[%clk 0:01:04.6]} 35... b4 {[%clk
0:01:35.7]} 36. Rc2 {[%clk 0:00:55.4]} 36... Rg3 {[%clk 0:01:20.7]} 37. d5
{[%clk 0:00:56.6]} 37... Rc3 {[%clk 0:01:21.2]} 38. Rd2 {[%clk 0:00:41.2]} 38...
a5 {[%clk 0:01:07.6]} 39. Rh2 {[%clk 0:00:27.6]} 39... Rc4+ {[%clk 0:01:07.6]}
40. Ke3 {[%clk 0:00:28]} 40... Kxd5 {[%clk 0:01:08.3]} 41. Rh6 {[%clk
0:00:29.5]} 41... Rc3+ {[%clk 0:01:05.9]} 42. Ke2 {[%clk 0:00:30.5]} 42... Ra3
{[%clk 0:01:02.8]} 43. Rxg6 {[%clk 0:00:30.6]} 43... Rxa2+ {[%clk 0:01:03.6]}
44. Kd3 {[%clk 0:00:32.5]} 44... b3 {[%clk 0:00:54.7]} 45. Rxf6 {[%clk
0:00:32.7]} 45... a4 {[%clk 0:00:56]} 46. g5 {[%clk 0:00:25.4]} 46... a3 {[%clk
0:00:41.7]} 47. Rb6 {[%clk 0:00:19.6]} 47... b2 {[%clk 0:00:41.5]} 48. g6 {[%clk
0:00:18.9]} 48... Ra1 {[%clk 0:00:42.8]} 49. f5 {[%clk 0:00:05.8]} 49... b1=Q+
{[%clk 0:00:41.6]} 50. Rxb1 {[%clk 0:00:06.4]} 50... Rxb1 {[%clk 0:00:43.5]} 51.
f6 {[%clk 0:00:07.3]} 51... Ke6 {[%clk 0:00:44.2]} 52. f7 {[%clk 0:00:06.6]}
52... Ke7 {[%clk 0:00:44.5]} 0-1